[Event "Polish Youth G16 Championship 2023"]
[Site "Jastrzebia Gora"]
[Date "2023.03.14"]
[Round "4.7"]
[White "Giemza, Julia"]
[Black "Salamon, Julia"]
[Result "1-0"]
[ECO "B40"]
[WhiteElo "1536"]
[BlackElo "1701"]
[Annotator "NA RC COMBH"]
[PlyCount "85"]
[EventDate "2023.03.11"]
[EventType "swiss"]
[EventCountry "POL"]
[SourceTitle "playchess.com"]
[Source "ChessBase"]
[SourceQuality "1"]
[TimeControl "40/5400+30:1800+30"]

1. e4 c5 2. Nf3 e6 3. d4 cxd4 4. Nxd4 Nf6 5. Nc3 Nc6 6. Ndb5 d6 7. Bf4 e5 8. Bg5 a6 9. Na3 Be7 10. Bxf6 gxf6 11. Nd5 Be6 12. c3 b5 13. Nc2 f5 14. exf5 Bxf5 15. a4 Rb8 16. Nce3 Be6 17. Qc2 Qc8 18. Bd3 h5 19. O-O h4 20. f4 exf4 21. Rxf4 Bg5 22. Rf2 Ne5 23. Bf5 Qc5 24. b4 Qa7 25. Re1 Qb7 26. Bxe6 fxe6 27. Nf6+ Bxf6 28. Rxf6 Ke7 29. Rf4 Rbg8 30. Qe2 Rh6 31. Ng4 Rhg6 32. h3 Qc6 33. Qf2 Qxc3 34. Qa7+ Kd8 35. Qb8+ Ke7 36. Qb7+ Ke8 37. Rd1 Rxg4 38. Qb8+ Kd7 39. Qxd6+ Kc8 40. Qxe6+ Kb7 41. Rf7+ Nxf7 42. Rd7+ Kc8 43. Rxf7+ 1-0

[Event "Polish Youth G16 Championship 2023"]
[Site "Jastrzebia Gora"]
[Date "2023.03.14"]
[Round "4.8"]
[White "Zapalowska, Wiktoria"]
[Black "Bandyk, Joanna"]
[Result "1-0"]
[ECO "B51"]
[WhiteElo "1639"]
[BlackElo "1459"]
[Annotator "NA RC COMBH"]
[PlyCount "97"]
[EventDate "2023.03.11"]
[EventType "swiss"]
[EventCountry "POL"]
[SourceTitle "playchess.com"]
[Source "ChessBase"]
[SourceQuality "1"]
[TimeControl "40/5400+30:1800+30"]

1. e4 {[%emt 0:00:04]} c5 {[%emt 0:00:05]} 2. Nf3 {[%emt 0:00:19]} d6 {[%emt 0:00:06]} 3. Bb5+ {[%emt 0:00:45]} Nd7 {[%emt 0:00:13]} 4. O-O {[%emt 0:00:25]} a6 {[%emt 0:00:36]} 5. Bd3 {[%emt 0:00:36]} Ngf6 {[%emt 0:02:44]} 6. Re1 {[%emt 0:01:33]} Qc7 {[%emt 0:05:48]} 7. a4 {[%emt 0:05:08]} e6 {[%emt 0:02:40]} 8. b3 {[%emt 0:05:56]} Be7 {[%emt 0:08:19]} 9. Bb2 {[%emt 0:01:42]} O-O {[%emt 0:00:54]} 10. Na3 {[%emt 0:03:24]} b6 11. c3 {[%emt 0:02:14]} Bb7 {[%emt 0:07:08]} 12. Bc2 Ne5 {[%emt 0:09:34]} 13. Rc1 {[%emt 0:03:51]} d5 {[%emt 0:04:11]} 14. Nxe5 {[%emt 0:02:43]} Qxe5 {[%emt 0:00:11]} 15. d4 {[%emt 0:01:08]} Qh5 {[%emt 0:05:47]} 16. e5 {[%emt 0:01:00]} Qxd1 {[%emt 0:00:32]} 17. Rcxd1 {[%emt 0:00:33]} Nd7 {[%emt 0:03:14]} 18. Bb1 {[%emt 0:04:17]} f6 {[%emt 0:00:30]} 19. f4 {[%emt 0:00:30]} fxe5 {[%emt 0:00:30]} 20. fxe5 {[%emt 0:01:30]} Bg5 {[%emt 0:00:47]} 21. Nc2 {[%emt 0:01:46]} Rf7 {[%emt 0:00:40]} 22. Rf1 {[%emt 0:02:07]} Raf8 {[%emt 0:00:00]} 23. Rxf7 {[%emt 0:00:47]} Rxf7 {[%emt 0:00:41]} 24. Rf1 {[%emt 0:04:18]} Nf8 {[%emt 0:00:02]} 25. Rxf7 {[%emt 0:00:21]} Kxf7 {[%emt 0:00:26]} 26. Kf2 {[%emt 0:00:47]} Ng6 {[%emt 0:06:23]} 27. g3 {[%emt 0:01:25]} Bc6 {[%emt 0:00:59]} 28. Ne1 {[%emt 0:12:03]} Be7 {[%emt 0:04:11]} 29. Ba3 {[%emt 0:00:44]} cxd4 {[%emt 0:00:30]} 30. Bxg6+ {[%emt 0:00:30]} hxg6 {[%emt 0:00:30]} 31. Bxe7 {[%emt 0:00:30]} Kxe7 {[%emt 0:00:30]} 32. cxd4 {[%emt 0:00:30]} Be8 {[%emt 0:00:05]} 33. Kf3 {[%emt 0:01:44]} Kd7 {[%emt 0:02:03]} 34. Nd3 {[%emt 0:01:00]} a5 {[%emt 0:02:02]} 35. h4 {[%emt 0:02:45]} Ke7 {[%emt 0:00:41]} 36. Nf4 {[%emt 0:01:49]} b5 {[%emt 0:06:44]} 37. axb5 {[%emt 0:00:26]} Bxb5 {[%emt 0:00:05]} 38. Nxg6+ {[%emt 0:01:34]} Kf7 {[%emt 0:00:05]} 39. Nf4 {[%emt 0:00:07]} a4 {[%emt 0:00:09]} 40. bxa4 {[%emt 0:00:00]} Bxa4 {[%emt 0:00:00]} 41. Kg4 {[%emt 0:01:47]} Bc2 {[%emt 0:03:12]} 42. Kg5 {[%emt 0:00:13]} Be4 {[%emt 0:02:19]} 43. g4 {[%emt 0:00:29]} Bc2 {[%emt 0:00:18]} 44. h5 {[%emt 0:00:10]} Bd1 {[%emt 0:00:24]} 45. Kh4 {[%emt 0:00:13]} Bc2 {[%emt 0:00:51]} 46. g5 {[%emt 0:00:22]} Bf5 {[%emt 0:00:15]} 47. g6+ {[%emt 0:01:12]} Kg8 {[%emt 0:02:51]} 48. Kg5 {[%emt 0:00:05]} Kh8 {[%emt 0:01:11]} 49. h6 {[%emt 0:00:06]} 1-0

[Event "Polish Youth G16 Championship 2023"]
[Site "Jastrzebia Gora"]
[Date "2023.03.14"]
[Round "4.9"]
[White "Pniewska, Beata"]
[Black "Lazniewska, Zofia"]
[Result "0-1"]
[ECO "A13"]
[WhiteElo "1448"]
[BlackElo "1621"]
[Annotator "NA RC COMBH"]
[PlyCount "72"]
[EventDate "2023.03.11"]
[EventType "swiss"]
[EventCountry "POL"]
[SourceTitle "playchess.com"]
[Source "ChessBase"]
[SourceQuality "1"]
[TimeControl "40/5400+30:1800+30"]

1. c4 {[%emt 0:00:04]} e6 {[%emt 0:00:05]} 2. g3 {[%emt 0:00:32]} d5 {[%emt 0:00:04]} 3. Nf3 {[%emt 0:01:03]} Nf6 {[%emt 0:00:12]} 4. Bg2 {[%emt 0:01:36]} Nbd7 {[%emt 0:00:48]} 5. d4 {[%emt 0:03:33]} c6 {[%emt 0:00:22]} 6. O-O {[%emt 0:01:51]} Bd6 {[%emt 0:00:40]} 7. Qc2 {[%emt 0:01:42]} O-O {[%emt 0:01:36]} 8. b3 {[%emt 0:01:12]} Re8 {[%emt 0:01:32]} 9. Nc3 {[%emt 0:02:08]} Qc7 {[%emt 0:03:23]} 10. e4 {[%emt 0:02:47]} dxe4 {[%emt 0:05:19]} 11. Nxe4 {[%emt 0:01:31]} Nxe4 {[%emt 0:10:03]} 12. Qxe4 {[%emt 0:00:08]} Nf6 {[%emt 0:02:33]} 13. Qc2 {[%emt 0:04:37]} Bd7 {[%emt 0:09:40]} 14. Bg5 {[%emt 0:04:08]} Be7 {[%emt 0:00:42]} 15. Ne5 {[%emt 0:07:37]} h6 {[%emt 0:01:19]} 16. Bf4 {[%emt 0:01:07]} Nh5 {[%emt 0:09:19]} 17. Nxc6 {[%emt 0:08:18]} Nxf4 {[%emt 0:02:08]} 18. Nxe7+ {[%emt 0:00:22]} Rxe7 {[%emt 0:00:06]} 19. gxf4 {[%emt 0:00:16]} Qxf4 {[%emt 0:03:28]} 20. Bxb7 {[%emt 0:00:42]} Rb8 {[%emt 0:05:58]} 21. Qe4 {[%emt 0:08:57]} Qg5+ {[%emt 0:05:47]} 22. Kh1 {[%emt 0:00:24]} Qf6 {[%emt 0:14:58]} 23. Rad1 {[%emt 0:02:38]} e5 {[%emt 0:02:30]} 24. Bd5 {[%emt 0:02:06]} Rbe8 {[%emt 0:02:48]} 25. Qf3 {[%emt 0:02:50]} Qh4 {[%emt 0:03:14]} 26. Qg3 {[%emt 0:02:40]} Qf6 {[%emt 0:01:43]} 27. dxe5 {[%emt 0:07:02]} Rxe5 {[%emt 0:00:27]} 28. Rg1 {[%emt 0:03:49]} Bf5 {[%emt 0:01:31]} 29. Qc3 {[%emt 0:05:32]} Bg6 {[%emt 0:04:54]} 30. Rdf1 {[%emt 0:07:36]} Kh7 {[%emt 0:01:16]} 31. f4 {[%emt 0:04:26]} Rxd5 {[%emt 0:00:56]} 32. Qxf6 {[%emt 0:00:27]} Be4+ {[%emt 0:00:12]} 33. Rg2 {[%emt 0:00:28]} Bxg2+ {[%emt 0:00:18]} 34. Kxg2 {[%emt 0:00:14]} Rd2+ {[%emt 0:00:07]} 35. Rf2 {[%emt 0:01:02]} Rxf2+ {[%emt 0:00:05]} 36. Kxf2 {[%emt 0:00:06]} gxf6 {[%emt 0:00:06]} 0-1

[Event "Polish Youth G16 Championship 2023"]
[Site "Jastrzebia Gora"]
[Date "2023.03.14"]
[Round "4.10"]
[White "Pastuszko, Katarzyna"]
[Black "Kulczycka, Zofia"]
[Result "0-1"]
[ECO "B59"]
[WhiteElo "1286"]
[BlackElo "1547"]
[Annotator "NA RC COMBH"]
[PlyCount "66"]
[EventDate "2023.03.11"]
[EventType "swiss"]
[EventCountry "POL"]
[SourceTitle "playchess.com"]
[Source "ChessBase"]
[SourceQuality "1"]
[TimeControl "40/5400+30:1800+30"]

1. e4 {[%emt 0:00:05]} c5 {[%emt 0:00:06]} 2. Nf3 {[%emt 0:00:20]} Nc6 {[%emt 0:00:08]} 3. d4 {[%emt 0:00:16]} cxd4 {[%emt 0:00:07]} 4. Nxd4 {[%emt 0:00:05]} Nf6 {[%emt 0:00:08]} 5. Nc3 {[%emt 0:00:15]} d6 {[%emt 0:00:09]} 6. Be2 {[%emt 0:00:38]} e5 {[%emt 0:00:13]} 7. Nb3 {[%emt 0:01:12]} Be7 {[%emt 0:01:08]} 8. O-O {[%emt 0:03:07]} O-O {[%emt 0:00:31]} 9. Be3 {[%emt 0:01:41]} Be6 {[%emt 0:02:03]} 10. h3 {[%emt 0:05:05]} a5 {[%emt 0:03:06]} 11. a4 {[%emt 0:03:23]} Nb4 {[%emt 0:02:13]} 12. Qd2 {[%emt 0:03:15]} d5 {[%emt 0:07:41]} 13. exd5 {[%emt 0:02:38]} Nfxd5 {[%emt 0:03:48]} 14. Nxd5 {[%emt 0:02:14]} Nxd5 {[%emt 0:01:48]} 15. Bc5 {[%emt 0:00:43]} Qc7 {[%emt 0:11:05]} 16. Bxe7 {[%emt 0:02:39]} Nxe7 {[%emt 0:00:17]} 17. f4 {[%emt 0:08:10]} Rfd8 {[%emt 0:05:38]} 18. Qe3 {[%emt 0:06:42]} exf4 {[%emt 0:04:51]} 19. Qxf4 {[%emt 0:01:26]} Qxc2 {[%emt 0:01:03]} 20. Nd4 {[%emt 0:11:14]} Qc5 {[%emt 0:08:08]} 21. Rfd1 {[%emt 0:03:05]} Nc6 {[%emt 0:02:31]} 22. Rac1 {[%emt 0:01:07]} Nxd4 {[%emt 0:04:41]} 23. Rxd4 {[%emt 0:03:26]} Qxd4+ {[%emt 0:00:48]} 24. Qxd4 {[%emt 0:01:07]} Rxd4 {[%emt 0:00:07]} 25. Bf3 {[%emt 0:01:03]} Rc8 {[%emt 0:01:55]} 26. Re1 {[%emt 0:01:00]} b6 {[%emt 0:01:02]} 27. Be4 {[%emt 0:03:07]} g6 {[%emt 0:00:56]} 28. Re2 {[%emt 0:01:56]} Rxa4 {[%emt 0:00:27]} 29. Kf2 {[%emt 0:00:34]} Rb4 {[%emt 0:01:26]} 30. Bf3 {[%emt 0:00:30]} Rbc4 {[%emt 0:00:38]} 31. Be4 {[%emt 0:00:57]} Bf5 {[%emt 0:01:15]} 32. Bxf5 {[%emt 0:00:07]} gxf5 {[%emt 0:00:33]} 33. Kf3 {[%emt 0:00:08]} Rc2 {[%emt 0:00:22]} 0-1

[Event "Polish Youth G16 Championship 2023"]
[Site "Jastrzebia Gora"]
[Date "2023.03.14"]
[Round "4.12"]
[White "Romejko, Jagoda"]
[Black "Biniak, Zuzanna"]
[Result "1-0"]
[ECO "B75"]
[WhiteElo "1483"]
[BlackElo "1457"]
[Annotator "NA RC COMBH"]
[PlyCount "115"]
[EventDate "2023.03.11"]
[EventType "swiss"]
[EventCountry "POL"]
[SourceTitle "playchess.com"]
[Source "ChessBase"]
[SourceQuality "1"]
[TimeControl "40/5400+30:1800+30"]

1. e4 {[%emt 0:00:03]} c5 {[%emt 0:00:07]} 2. Nf3 {[%emt 0:00:03]} d6 {[%emt 0:00:06]} 3. d4 {[%emt 0:00:05]} cxd4 {[%emt 0:00:06]} 4. Nxd4 {[%emt 0:00:16]} Nf6 {[%emt 0:00:10]} 5. Nc3 {[%emt 0:00:06]} g6 {[%emt 0:00:06]} 6. f3 {[%emt 0:00:16]} Bg7 {[%emt 0:00:09]} 7. Be3 {[%emt 0:00:13]} Nc6 {[%emt 0:00:33]} 8. Qd2 {[%emt 0:00:15]} h5 {[%emt 0:01:15]} 9. O-O-O {[%emt 0:01:59]} Bd7 {[%emt 0:01:27]} 10. h3 {[%emt 0:03:04]} a6 {[%emt 0:01:37]} 11. Be2 {[%emt 0:02:57]} h4 {[%emt 0:03:33]} 12. Kb1 {[%emt 0:10:00]} b5 {[%emt 0:04:18]} 13. Nxc6 {[%emt 0:04:42]} Bxc6 {[%emt 0:00:09]} 14. Nd5 {[%emt 0:01:21]} Nxd5 {[%emt 0:14:41]} 15. exd5 {[%emt 0:00:11]} Bb7 {[%emt 0:02:58]} 16. f4 {[%emt 0:04:17]} Bc8 {[%emt 0:06:21]} 17. Bd4 {[%emt 0:02:14]} O-O {[%emt 0:05:46]} 18. Bxg7 {[%emt 0:02:56]} Kxg7 {[%emt 0:00:07]} 19. Qd4+ {[%emt 0:01:17]} f6 {[%emt 0:02:46]} 20. Bg4 {[%emt 0:12:23]} Bxg4 {[%emt 0:08:15]} 21. hxg4 {[%emt 0:00:06]} Rh8 {[%emt 0:00:52]} 22. Rde1 {[%emt 0:05:27]} Qd7 {[%emt 0:05:12]} 23. g5 {[%emt 0:03:40]} Qa7 {[%emt 0:11:26]} 24. Qd2 {[%emt 0:08:07]} Rae8 {[%emt 0:04:55]} 25. Re6 {[%emt 0:03:59]} Qc5 {[%emt 0:08:49]} 26. Qe1 {[%emt 0:10:57]} Kf7 {[%emt 0:07:29]} 27. Qd2 {[%emt 0:11:34]} Kg7 {[%emt 0:07:51]} 28. Rhe1 {[%emt 0:02:04]} Kf7 {[%emt 0:02:01]} 29. Qe2 {[%emt 0:01:33]} Qa7 {[%emt 0:00:56]} 30. gxf6 {[%emt 0:00:55]} h3 {[%emt 0:00:30]} 31. gxh3 {[%emt 0:02:31]} Rxh3 {[%emt 0:00:41]} 32. a3 {[%emt 0:01:48]} Rhh8 {[%emt 0:00:27]} 33. Rxe7+ {[%emt 0:02:09]} Rxe7 {[%emt 0:00:01]} 34. fxe7 {[%emt 0:00:10]} Qd7 {[%emt 0:00:36]} 35. Qe4 {[%emt 0:02:10]} Re8 {[%emt 0:00:34]} 36. Rg1 {[%emt 0:00:53]} Qf5 {[%emt 0:00:10]} 37. Qxf5+ {[%emt 0:01:40]} gxf5 {[%emt 0:00:01]} 38. Re1 {[%emt 0:00:01]} Rxe7 {[%emt 0:01:04]} 39. Rxe7+ {[%emt 0:00:07]} Kxe7 {[%emt 0:00:01]} 40. Kc1 {[%emt 0:00:00]} Kd7 {[%emt 0:00:00]} 41. Kd2 {[%emt 0:00:26]} Kc7 {[%emt 0:00:59]} 42. Kc3 {[%emt 0:01:44]} Kb6 {[%emt 0:00:14]} 43. Kd4 {[%emt 0:00:19]} Ka5 {[%emt 0:09:46]} 44. Kd3 {[%emt 0:11:58]} Kb6 {[%emt 0:02:16]} 45. b4 {[%emt 0:06:35]} a5 {[%emt 0:11:04]} 46. Ke3 {[%emt 0:00:53]} axb4 {[%emt 0:00:46]} 47. axb4 {[%emt 0:00:07]} Kc7 {[%emt 0:00:07]} 48. Kf3 {[%emt 0:00:14]} Kd7 {[%emt 0:00:17]} 49. Kg3 {[%emt 0:00:06]} Ke7 {[%emt 0:00:39]} 50. Kh4 {[%emt 0:00:10]} Kf6 {[%emt 0:00:55]} 51. Kh5 {[%emt 0:00:10]} Kf7 {[%emt 0:00:12]} 52. Kg5 {[%emt 0:00:07]} Kg7 {[%emt 0:00:09]} 53. Kxf5 {[%emt 0:00:07]} Kf7 {[%emt 0:00:02]} 54. c3 {[%emt 0:00:12]} Ke7 {[%emt 0:00:09]} 55. Kg6 {[%emt 0:00:05]} Kf8 {[%emt 0:00:06]} 56. Kf6 {[%emt 0:00:09]} Ke8 {[%emt 0:00:04]} 57. Kg7 {[%emt 0:00:12]} Ke7 {[%emt 0:00:10]} 58. f5 {[%emt 0:00:05]} 1-0

[Event "Polish Youth G16 Championship 2023"]
[Site "Jastrzebia Gora"]
[Date "2023.03.14"]
[Round "4.13"]
[White "Krzysztynska, Maria"]
[Black "Dura, Anna"]
[Result "1/2-1/2"]
[ECO "C02"]
[WhiteElo "1335"]
[BlackElo "1186"]
[Annotator "NA RC COMBH"]
[PlyCount "50"]
[EventDate "2023.03.11"]
[EventType "swiss"]
[EventCountry "POL"]
[SourceTitle "playchess.com"]
[Source "ChessBase"]
[SourceQuality "1"]
[TimeControl "40/5400+30:1800+30"]

1. e4 {[%emt 0:07:20]} e6 {[%emt 0:00:04]} 2. d4 {[%emt 0:00:39]} d5 {[%emt 0:00:07]} 3. e5 {[%emt 0:01:03]} c5 {[%emt 0:00:15]} 4. c3 {[%emt 0:01:17]} Nc6 {[%emt 0:01:07]} 5. Nf3 {[%emt 0:03:05]} Qb6 {[%emt 0:01:00]} 6. a3 {[%emt 0:02:10]} a5 {[%emt 0:01:29]} 7. b3 {[%emt 0:08:30]} Bd7 {[%emt 0:02:55]} 8. Be3 {[%emt 0:03:05]} Be7 {[%emt 0:04:03]} 9. Bd3 {[%emt 0:01:50]} Rc8 {[%emt 0:05:23]} 10. Nbd2 {[%emt 0:14:26]} Nh6 {[%emt 0:07:45]} 11. O-O Nf5 12. dxc5 {[%emt 0:11:25]} Nxe3 {[%emt 0:05:00]} 13. cxb6 {[%emt 0:07:23]} Nxd1 {[%emt 0:00:27]} 14. Rfxd1 {[%emt 0:01:31]} Bc5 {[%emt 0:01:25]} 15. c4 {[%emt 0:02:08]} Bxb6 {[%emt 0:00:30]} 16. Rab1 {[%emt 0:00:30]} Bc7 {[%emt 0:00:30]} 17. Re1 {[%emt 0:00:30]} O-O {[%emt 0:11:02]} 18. b4 {[%emt 0:03:54]} axb4 {[%emt 0:03:10]} 19. axb4 {[%emt 0:00:17]} Ne7 {[%emt 0:03:53]} 20. Nd4 {[%emt 0:05:04]} Nc6 {[%emt 0:04:24]} 21. N4f3 {[%emt 0:02:17]} Ne7 {[%emt 0:00:21]} 22. Nd4 {[%emt 0:01:45]} Nc6 {[%emt 0:00:14]} 23. N4f3 {[%emt 0:00:10]} Ne7 {[%emt 0:00:09]} 24. Nd4 {[%emt 0:00:28]} Nc6 {[%emt 0:00:07]} 25. N4f3 {[%emt 0:00:12]} Ne7 {[%emt 0:00:05]} 1/2-1/2

[Event "Polish Youth G16 Championship 2023"]
[Site "Jastrzebia Gora"]
[Date "2023.03.14"]
[Round "4.14"]
[White "Sprzeczka, Emilia"]
[Black "Sliwicka, Weronika"]
[Result "1-0"]
[ECO "B22"]
[WhiteElo "1887"]
[BlackElo "1374"]
[Annotator "NA RC COMBH"]
[PlyCount "57"]
[EventDate "2023.03.11"]
[EventType "swiss"]
[EventCountry "POL"]
[SourceTitle "playchess.com"]
[Source "ChessBase"]
[SourceQuality "1"]
[TimeControl "40/5400+30:1800+30"]

1. e4 {[%emt 0:00:02]} c5 {[%emt 0:00:04]} 2. c3 {[%emt 0:00:03]} Nf6 {[%emt 0:00:05]} 3. e5 {[%emt 0:00:04]} Nd5 {[%emt 0:00:04]} 4. Nf3 {[%emt 0:00:05]} d6 {[%emt 0:00:06]} 5. Bc4 {[%emt 0:00:17]} e6 {[%emt 0:00:40]} 6. d4 {[%emt 0:00:16]} cxd4 {[%emt 0:01:14]} 7. cxd4 {[%emt 0:00:07]} Nb6 {[%emt 0:01:22]} 8. Bb3 {[%emt 0:00:39]} d5 {[%emt 0:00:33]} 9. O-O {[%emt 0:00:36]} Be7 {[%emt 0:00:52]} 10. Nc3 {[%emt 0:03:06]} Nc6 {[%emt 0:02:32]} 11. Bc2 {[%emt 0:05:34]} f6 {[%emt 0:06:15]} 12. exf6 {[%emt 0:01:29]} Bxf6 {[%emt 0:00:16]} 13. Qd3 {[%emt 0:10:36]} Bd7 {[%emt 0:06:03]} 14. a3 {[%emt 0:04:35]} Ne7 {[%emt 0:03:50]} 15. Bf4 {[%emt 0:07:16]} Ng6 {[%emt 0:01:15]} 16. Bg3 {[%emt 0:07:41]} a6 {[%emt 0:08:12]} 17. Rae1 {[%emt 0:02:31]} Nc4 {[%emt 0:02:32]} 18. Nxd5 $18 {[%emt 0:08:41]} Rc8 {[%emt 0:11:10]} 19. Qe2 {[%emt 0:15:43]} O-O {[%emt 0:02:14]} 20. Nxf6+ {[%emt 0:07:34]} Qxf6 {[%emt 0:01:07]} 21. Bd3 {[%emt 0:03:05]} b5 {[%emt 0:02:52]} 22. b3 {[%emt 0:02:41]} Na5 {[%emt 0:01:42]} 23. Ne5 {[%emt 0:02:56]} Nxe5 {[%emt 0:08:41]} 24. Bxe5 {[%emt 0:00:09]} Qe7 {[%emt 0:00:40]} 25. Qh5 {[%emt 0:00:44]} h6 {[%emt 0:13:32]} 26. Qg6 {[%emt 0:00:30]} Qg5 {[%emt 0:00:09]} 27. Qh7+ {[%emt 0:00:22]} Kf7 {[%emt 0:00:06]} 28. h4 {[%emt 0:00:25]} Qg4 {[%emt 0:02:00]} 29. f3 {[%emt 0:00:16]} 1-0

[Event "Polish Youth G16 Championship 2023"]
[Site "Jastrzebia Gora"]
[Date "2023.03.14"]
[Round "4.15"]
[White "Predkiewicz, Paulina"]
[Black "Oborska, Magda"]
[Result "0-1"]
[ECO "C44"]
[WhiteElo "1402"]
[BlackElo "1613"]
[Annotator "NA RC COMBH"]
[PlyCount "130"]
[EventDate "2023.03.11"]
[EventType "swiss"]
[EventCountry "POL"]
[SourceTitle "playchess.com"]
[Source "ChessBase"]
[SourceQuality "1"]
[TimeControl "40/5400+30:1800+30"]

1. e4 {[%emt 0:00:02]} e5 {[%emt 0:00:05]} 2. Nf3 {[%emt 0:00:05]} Nc6 {[%emt 0:00:03]} 3. d4 {[%emt 0:00:05]} exd4 {[%emt 0:00:03]} 4. Nxd4 {[%emt 0:00:06]} Bb4+ {[%emt 0:00:03]} 5. c3 {[%emt 0:00:12]} Bc5 {[%emt 0:00:04]} 6. Be3 {[%emt 0:00:09]} Bb6 {[%emt 0:00:05]} 7. Qg4 {[%emt 0:00:09]} Qf6 {[%emt 0:00:16]} 8. Qg3 {[%emt 0:00:10]} d6 {[%emt 0:00:20]} 9. Nb5 {[%emt 0:18:07]} Kd8 {[%emt 0:01:49]} 10. Bg5 {[%emt 0:00:22]} Bxf2+ {[%emt 0:00:19]} 11. Qxf2 {[%emt 0:02:03]} Qxg5 {[%emt 0:00:06]} 12. Nd2 {[%emt 0:02:21]} Nf6 {[%emt 0:07:29]} 13. O-O-O {[%emt 0:17:40]} Be6 {[%emt 0:04:55]} 14. Kc2 {[%emt 0:01:46]} Ng4 {[%emt 0:00:35]} 15. Qe2 {[%emt 0:02:45]} Ne3+ {[%emt 0:00:16]} 16. Kb1 Nxd1 {[%emt 0:00:29]} 17. Qxd1 {[%emt 0:00:27]} Ne5 {[%emt 0:02:46]} 18. h3 {[%emt 0:11:22]} Qe3 {[%emt 0:06:11]} 19. Nd4 {[%emt 0:04:58]} Qh6 {[%emt 0:03:55]} 20. Nxe6+ {[%emt 0:03:07]} Qxe6 {[%emt 0:02:03]} 21. Nf3 {[%emt 0:02:12]} Nd7 {[%emt 0:01:49]} 22. Qd4 {[%emt 0:02:44]} Qg6 {[%emt 0:02:24]} 23. Rg1 {[%emt 0:02:08]} Re8 {[%emt 0:05:39]} 24. Bd3 {[%emt 0:01:02]} Nc5 {[%emt 0:02:23]} 25. Nd2 {[%emt 0:00:37]} Qg3 {[%emt 0:18:01]} 26. Bc2 {[%emt 0:01:23]} Ne6 {[%emt 0:10:32]} 27. Qd5 {[%emt 0:03:21]} c6 {[%emt 0:03:11]} 28. Qf5 {[%emt 0:02:13]} Qg6 {[%emt 0:02:31]} 29. Qf2 {[%emt 0:01:17]} Qg5 {[%emt 0:05:24]} 30. Rd1 {[%emt 0:02:43]} Qf4 {[%emt 0:01:35]} 31. Qg1 {[%emt 0:02:01]} Kc7 {[%emt 0:04:41]} 32. Nc4 {[%emt 0:01:48]} Ng5 {[%emt 0:05:06]} 33. Nxd6 {[%emt 0:06:47]} Red8 {[%emt 0:06:43]} 34. Nb5+ {[%emt 0:00:41]} Kc8 {[%emt 0:00:10]} 35. Rf1 {[%emt 0:01:01]} Qe5 {[%emt 0:02:07]} 36. Nd4 {[%emt 0:01:36]} f6 {[%emt 0:02:40]} 37. Rf5 {[%emt 0:03:12]} Qe7 {[%emt 0:01:07]} 38. Qe3 {[%emt 0:01:02]} Re8 {[%emt 0:00:06]} 39. e5 {[%emt 0:01:55]} g6 {[%emt 0:00:20]} 40. Rf1 {[%emt 0:00:00]} Qxe5 {[%emt 0:00:00]} 41. Qf2 {[%emt 0:03:03]} f5 {[%emt 0:02:04]} 42. Rd1 {[%emt 0:01:37]} Ne4 {[%emt 0:03:19]} 43. Qf1 {[%emt 0:00:46]} Kc7 {[%emt 0:01:37]} 44. Qc4 {[%emt 0:06:03]} Nd6 {[%emt 0:02:08]} 45. Qd3 {[%emt 0:01:22]} Rad8 {[%emt 0:01:44]} 46. Qf3 {[%emt 0:00:38]} Qe3 {[%emt 0:01:53]} 47. Qf1 {[%emt 0:00:45]} Ne4 {[%emt 0:01:27]} 48. Bxe4 {[%emt 0:01:14]} Qxe4+ {[%emt 0:02:21]} 49. Ka1 {[%emt 0:00:10]} a6 {[%emt 0:01:16]} 50. Rc1 {[%emt 0:00:24]} Re7 {[%emt 0:01:13]} 51. Qc4 {[%emt 0:00:38]} Qd5 {[%emt 0:02:18]} 52. Qf1 {[%emt 0:00:41]} Rde8 {[%emt 0:00:27]} 53. a3 {[%emt 0:01:08]} c5 {[%emt 0:01:21]} 54. Nf3 {[%emt 0:00:17]} Re2 {[%emt 0:00:47]} 55. Rb1 {[%emt 0:00:28]} Qe4 {[%emt 0:02:33]} 56. Qg1 {[%emt 0:00:21]} Qe3 {[%emt 0:01:06]} 57. Qh1 {[%emt 0:01:05]} h6 {[%emt 0:00:48]} 58. Qh2+ {[%emt 0:00:34]} f4 {[%emt 0:00:11]} 59. h4 {[%emt 0:00:05]} Qxf3 {[%emt 0:00:15]} 60. Qg1 {[%emt 0:00:27]} Qe3 {[%emt 0:00:16]} 61. Qxe3 {[%emt 0:00:17]} R8xe3 {[%emt 0:00:27]} 62. Ka2 {[%emt 0:00:14]} Rxg2 {[%emt 0:00:29]} 63. Kb3 {[%emt 0:00:07]} f3 {[%emt 0:00:05]} 64. Rf1 {[%emt 0:00:11]} f2 {[%emt 0:00:15]} 65. h5 {[%emt 0:00:13]} Re1 {[%emt 0:00:25]} 0-1